Workbook

Sheet Модель к задаче №1
A1: Введите величину заряда q | B1: 98 | D1: Максимальное значение напряженности | E1: =MAX(C5:C65) -> 18.85882877
A2: Введите расстояние между зарядами ( не более 20) | B2: 12 | D2: Ячейка в которой достигается максимальное знакчение напряженности электрического поля подсвечена красным
A3: Значение коэффициента к в законе Кулона (для простоты начальное значение 9) | B3: =9 -> 9
A4: Значение x | C4: E
A5: 0 | C5: =(16*B$3*A5*B$1)/(POWER((4*A5*A5+B$2*B$2),1.5)) -> 0
A6: 0.2 | C6: 1.630614887
A7: 0.4 | C7: 3.245009252
A8: 0.6 | C8: 4.827408151
A9: 0.8 | C9: 6.362903991
A10: 1 | C10: 7.8378328
A11: 1.2 | C11: 9.240087136
A12: 1.4 | C12: 10.55935305
A13: 1.6 | C13: 11.78726441
A14: 1.8 | C14: 12.91747375
A15: 2 | C15: 13.94564448
A16: 2.2 | C16: 14.86937319
A17: 2.4 | C17: 15.68805443
A18: 2.6 | C18: 16.40270159
A19: 2.8 | C19: 17.01573816
A20: 3 | C20: 17.53077294
A21: 3.2 | C21: 17.95237126
A22: 3.4 | C22: 18.28583215
A23: 3.6 | C23: 18.53697942
A24: 3.8 | C24: 18.71197207
A25: 4 | C25: 18.81713743
A26: 4.2 | C26: 18.85882877
A27: 4.4 | C27: 18.84330749
A28: 4.6 | C28: 18.77664876
A29: 4.8 | C29: 18.6646691
A30: 5 | C30: 18.51287346
A31: 5.2 | C31: 18.32641925
A32: 5.4 | C32: 18.11009494
A33: 5.6 | C33: 17.86831048
A34: 5.8 | C34: 17.60509734
A35: 6 | C35: 17.32411614
A36: 6.2 | C36: 17.02866978
A37: 6.4 | C37: 16.72172074
A38: 6.6 | C38: 16.40591113
A39: 6.8 | C39: 16.08358435
A40: 7 | C40: 15.75680761
A41: 7.2 | C41: 15.42739455
A42: 7.4 | C42: 15.09692751
A43: 7.6 | C43: 14.76677899
A44: 7.8 | C44: 14.43813214
A45: 8 | C45: 14.112
A46: 8.2 | C46: 13.78924346
A47: 8.4 | C47: 13.47058787
A48: 8.6 | C48: 13.1566383
A49: 8.8 | C49: 12.84789345
A50: 9 | C50: 12.54475828
A51: 9.2 | C51: 12.24755548
A52: 9.4 | C52: 11.95653568
A53: 9.6 | C53: 11.67188677
A54: 9.8 | C54: 11.39374205
A55: 10 | C55: 11.12218765
A56: 10.2 | C56: 10.85726903
A57: 10.4 | C57: 10.59899677
A58: 10.6 | C58: 10.34735166
A59: 10.8 | C59: 10.10228928
A60: 11 | C60: 9.863743889
A61: 11.2 | C61: 9.631631982
A62: 11.4 | C62: 9.405855292
A63: 11.6 | C63: 9.186303486
A64: 11.8 | C64: 8.972856481
A65: 12 | C65: 8.765386472

Sheet Модель к задаче №2
A1: Введите значение ЭДС | B1: 200 | D1: Максимальная выделямая мощность | E1: =MAX(B5:B30) -> 5000
A2: Введите значение r ( не более 24) | B2: 2 | D2: Ячейка с максимальный значением мощности подсвечивается красным
A4: R | B4: P
A5: 0 | B5: =POWER(B$1/(A5+B$2),2)*A5 -> 0
A6: 1 | B6: =POWER(B$1/(A6+B$2),2)*A6 -> 4444.444444
A7: 2 | B7: =POWER(B$1/(A7+B$2),2)*A7 -> 5000
A8: 3 | B8: =POWER(B$1/(A8+B$2),2)*A8 -> 4800
A9: 4 | B9: =POWER(B$1/(A9+B$2),2)*A9 -> 4444.444444
A10: 5 | B10: =POWER(B$1/(A10+B$2),2)*A10 -> 4081.632653
A11: 6 | B11: =POWER(B$1/(A11+B$2),2)*A11 -> 3750
A12: 7 | B12: =POWER(B$1/(A12+B$2),2)*A12 -> 3456.790123
A13: 8 | B13: =POWER(B$1/(A13+B$2),2)*A13 -> 3200
A14: 9 | B14: =POWER(B$1/(A14+B$2),2)*A14 -> 2975.206612
A15: 10 | B15: =POWER(B$1/(A15+B$2),2)*A15 -> 2777.777778
A16: 11 | B16: =POWER(B$1/(A16+B$2),2)*A16 -> 2603.550296
A17: 12 | B17: =POWER(B$1/(A17+B$2),2)*A17 -> 2448.979592
A18: 13 | B18: =POWER(B$1/(A18+B$2),2)*A18 -> 2311.111111
A19: 14 | B19: =POWER(B$1/(A19+B$2),2)*A19 -> 2187.5
A20: 15 | B20: =POWER(B$1/(A20+B$2),2)*A20 -> 2076.124567
A21: 16 | B21: =POWER(B$1/(A21+B$2),2)*A21 -> 1975.308642
A22: 17 | B22: 1883.65651
A23: 18 | B23: 1800
A24: 19 | B24: 1723.356009
A25: 20 | B25: 1652.892562
A26: 21 | B26: 1587.901701
A27: 22 | B27: 1527.777778
A28: 23 | B28: 1472
A29: 24 | B29: 1420.118343
A30: 25 | B30: 1371.742112
A46: 10.25 | B46: =POWER(B$1/(A46+B$2),2)*A46 -> 2732.194919
